[Event "Live Chess"]
[Site "Chess.com"]
[Date "2024.06.01"]
[Round "-"]
[White "KeithArkell"]
[Black "Pablo_dmp"]
[Result "1-0"]
[WhiteElo "2454"]
[BlackElo "2012"]
[TimeControl "300"]
[EndTime "13:41:08 PDT"]
[Termination "KeithArkell won by resignation"]

1. d4 {[%clk 0:04:57.6]} 1... Nf6 {[%clk 0:04:59.2]} 2. Nf3 {[%clk 0:04:56.9]}
2... b6 {[%clk 0:04:58.8]} 3. c4 {[%clk 0:04:56.4]} 3... Bb7 {[%clk 0:04:58.3]}
4. g3 {[%clk 0:04:56.1]} 4... e6 {[%clk 0:04:57.8]} 5. Bg2 {[%clk 0:04:55.7]}
5... Bb4+ {[%clk 0:04:57.4]} 6. Bd2 {[%clk 0:04:54.7]} 6... Qe7 {[%clk
0:04:56.7]} 7. O-O {[%clk 0:04:53.5]} 7... O-O {[%clk 0:04:56.2]} 8. Nc3 {[%clk
0:04:52.5]} 8... a6 {[%clk 0:04:51.3]} 9. Ne5 {[%clk 0:04:50.5]} 9... Bxg2
{[%clk 0:04:43.5]} 10. Kxg2 {[%clk 0:04:49.8]} 10... Bd6 {[%clk 0:04:39.1]} 11.
e4 {[%clk 0:04:45.4]} 11... Bxe5 {[%clk 0:04:36.2]} 12. dxe5 {[%clk 0:04:44.7]}
12... Ne8 {[%clk 0:04:36.1]} 13. f4 {[%clk 0:04:37.8]} 13... Nc6 {[%clk
0:04:32.1]} 14. Be3 {[%clk 0:04:37.1]} 14... g6 {[%clk 0:04:22.4]} 15. Qe2
{[%clk 0:04:32.1]} 15... Qb4 {[%clk 0:04:17.3]} 16. Rfd1 {[%clk 0:04:31]} 16...
d6 {[%clk 0:04:14.8]} 17. exd6 {[%clk 0:04:27.3]} 17... Nxd6 {[%clk 0:04:13.6]}
18. c5 {[%clk 0:04:15.3]} 18... bxc5 {[%clk 0:04:07.7]} 19. a3 {[%clk
0:04:10.7]} 19... Qc4 {[%clk 0:03:54.5]} 20. Qxc4 {[%clk 0:04:09.8]} 20... Nxc4
{[%clk 0:03:54.4]} 21. Bxc5 {[%clk 0:04:09.1]} 21... Rfd8 {[%clk 0:03:50.2]} 22.
b3 {[%clk 0:04:08.3]} 22... Nb6 {[%clk 0:03:44.5]} 23. Kf3 {[%clk 0:04:00.7]}
23... h6 {[%clk 0:03:35]} 24. Ke3 {[%clk 0:03:59.5]} 24... Nd7 {[%clk
0:03:33.3]} 25. Na4 {[%clk 0:03:52.6]} 25... Rab8 {[%clk 0:03:27.6]} 26. b4
{[%clk 0:03:50.7]} 26... a5 {[%clk 0:03:12.5]} 27. bxa5 {[%clk 0:03:33.7]} 27...
Rb3+ {[%clk 0:03:02.5]} 28. Ke2 {[%clk 0:03:26.1]} 28... Rb5 {[%clk 0:02:42.2]}
29. Bb4 {[%clk 0:03:13.6]} 29... Nxb4 {[%clk 0:02:24.3]} 30. axb4 {[%clk
0:03:11.8]} 30... Rxb4 {[%clk 0:02:24.2]} 31. Nc5 {[%clk 0:03:07]} 31... Rb2+
{[%clk 0:02:16.7]} 32. Ke3 {[%clk 0:03:06.4]} 32... Rdb8 {[%clk 0:01:58.7]} 33.
Rxd7 {[%clk 0:03:02.9]} 33... R8b5 {[%clk 0:01:56.7]} 34. a6 {[%clk 0:03:00.4]}
34... Rxc5 {[%clk 0:01:54.6]} 35. a7 {[%clk 0:02:59.7]} 35... e5 {[%clk
0:01:53.3]} 36. a8=Q+ {[%clk 0:02:58.4]} 36... Kg7 {[%clk 0:01:50.7]} 37. fxe5
{[%clk 0:02:57]} 37... Rc3+ {[%clk 0:01:45.6]} 38. Rd3 {[%clk 0:02:55.1]} 38...
Rcc2 {[%clk 0:01:42.5]} 39. Re1 {[%clk 0:02:53.8]} 1-0

[Event "Live Chess"]
[Site "Chess.com"]
[Date "2024.06.01"]
[Round "-"]
[White "educatedlad"]
[Black "upoe610"]
[Result "0-1"]
[WhiteElo "1740"]
[BlackElo "2244"]
[TimeControl "300"]
[EndTime "13:41:10 PDT"]
[Termination "upoe610 won by resignation"]

1. d4 {[%clk 0:04:58.4]} 1... Nf6 {[%clk 0:04:56.8]} 2. Bg5 {[%clk 0:04:57.2]}
2... c5 {[%clk 0:04:55]} 3. Bxf6 {[%clk 0:04:55.6]} 3... gxf6 {[%clk 0:04:52]}
4. d5 {[%clk 0:04:55.5]} 4... d6 {[%clk 0:04:49.9]} 5. e4 {[%clk 0:04:52.5]}
5... f5 {[%clk 0:04:44]} 6. Bb5+ {[%clk 0:04:49.1]} 6... Nd7 {[%clk 0:04:42.7]}
7. exf5 {[%clk 0:04:47.4]} 7... Bg7 {[%clk 0:04:41.4]} 8. Qg4 {[%clk 0:04:43.7]}
8... Bxb2 {[%clk 0:04:36.9]} 9. Nf3 {[%clk 0:04:25.3]} 9... Qa5+ {[%clk
0:04:33.1]} 10. Nbd2 {[%clk 0:04:21.5]} 10... Bxa1 {[%clk 0:04:28.8]} 11. Bxd7+
{[%clk 0:04:19.1]} 11... Bxd7 {[%clk 0:04:27.2]} 12. O-O {[%clk 0:04:16.1]}
12... Bf6 {[%clk 0:04:24.9]} 13. Nb3 {[%clk 0:04:12.9]} 13... Qb4 {[%clk
0:04:22]} 14. Qh5 {[%clk 0:04:11.1]} 0-1

[Event "Live Chess"]
[Site "Chess.com"]
[Date "2024.06.01"]
[Round "-"]
[White "Queensandpawns"]
[Black "gobbles19"]
[Result "1-0"]
[WhiteElo "2381"]
[BlackElo "2232"]
[TimeControl "300"]
[EndTime "13:41:27 PDT"]
[Termination "Queensandpawns won by resignation"]

1. e4 {[%clk 0:04:58.5]} 1... Nf6 {[%clk 0:04:58.4]} 2. e5 {[%clk 0:04:57.5]}
2... Nd5 {[%clk 0:04:57.8]} 3. c4 {[%clk 0:04:57.4]} 3... Nb6 {[%clk 0:04:56.6]}
4. a4 {[%clk 0:04:57.3]} 4... a5 {[%clk 0:04:55.3]} 5. Nc3 {[%clk 0:04:56.4]}
5... d6 {[%clk 0:04:54.3]} 6. exd6 {[%clk 0:04:55]} 6... cxd6 {[%clk 0:04:54.2]}
7. Nf3 {[%clk 0:04:53.9]} 7... g6 {[%clk 0:04:53.8]} 8. b3 {[%clk 0:04:52.9]}
8... Bg7 {[%clk 0:04:53.4]} 9. Bb2 {[%clk 0:04:52.6]} 9... O-O {[%clk
0:04:52.1]} 10. d4 {[%clk 0:04:52.2]} 10... Nc6 {[%clk 0:04:49.4]} 11. Be2
{[%clk 0:04:50.8]} 11... e5 {[%clk 0:04:43.7]} 12. d5 {[%clk 0:04:49.5]} 12...
Nb4 {[%clk 0:04:32.6]} 13. O-O {[%clk 0:04:49.4]} 13... f5 {[%clk 0:04:29.1]}
14. Nb5 {[%clk 0:04:43.4]} 14... f4 {[%clk 0:04:23.2]} 15. Bd3 {[%clk
0:04:40.4]} 15... Nxd3 {[%clk 0:04:19.5]} 16. Qxd3 {[%clk 0:04:39.2]} 16... Bf5
{[%clk 0:04:19.3]} 17. Qd2 {[%clk 0:04:37.8]} 17... Qe7 {[%clk 0:04:11.9]} 18.
Ba3 {[%clk 0:04:34]} 18... Rfd8 {[%clk 0:04:08]} 19. Rac1 {[%clk 0:04:30.7]}
19... e4 {[%clk 0:04:02.4]} 20. Nfd4 {[%clk 0:04:29.1]} 20... Bg4 {[%clk
0:03:45.3]} 21. h3 {[%clk 0:04:25]} 21... e3 {[%clk 0:03:40.4]} 22. fxe3 {[%clk
0:04:19.6]} 22... fxe3 {[%clk 0:03:40.3]} 23. Qd3 {[%clk 0:04:18.9]} 23... Bc8
{[%clk 0:03:08.1]} 24. Rce1 {[%clk 0:04:10]} 24... Bh6 {[%clk 0:03:05.7]} 25.
Bc1 {[%clk 0:04:02.2]} 25... Re8 {[%clk 0:03:00.4]} 26. Rf3 {[%clk 0:03:57.1]}
26... Nd7 {[%clk 0:02:54.9]} 27. Rfxe3 {[%clk 0:03:29.2]} 27... Bxe3+ {[%clk
0:02:53.3]} 28. Rxe3 {[%clk 0:03:28.2]} 28... Ne5 {[%clk 0:02:52.5]} 29. Qe2
{[%clk 0:03:21.6]} 29... Rf8 {[%clk 0:02:38.9]} 30. Bb2 {[%clk 0:03:17.9]} 30...
Bd7 {[%clk 0:02:25.7]} 31. Nc7 {[%clk 0:03:15.2]} 31... Rac8 {[%clk 0:02:20.4]}
32. Nde6 {[%clk 0:03:13.8]} 32... Bxe6 {[%clk 0:02:19]} 33. Nxe6 {[%clk
0:03:12.1]} 33... Rf5 {[%clk 0:02:14.9]} 34. g4 {[%clk 0:03:10.3]} 34... Rf7
{[%clk 0:02:07.3]} 35. Rxe5 {[%clk 0:03:02]} 35... dxe5 {[%clk 0:02:07.2]} 36.
Qxe5 {[%clk 0:03:01.5]} 36... Rf6 {[%clk 0:01:48.5]} 37. Qxf6 {[%clk 0:02:58]}
37... Qxf6 {[%clk 0:01:48.4]} 38. Bxf6 {[%clk 0:02:57.3]} 38... Kf7 {[%clk
0:01:47.8]} 39. Bc3 {[%clk 0:02:56.7]} 39... h5 {[%clk 0:01:46.6]} 40. gxh5
{[%clk 0:02:55.5]} 40... gxh5 {[%clk 0:01:45.9]} 41. Bxa5 {[%clk 0:02:55.2]}
41... Rg8+ {[%clk 0:01:43.9]} 42. Kf2 {[%clk 0:02:53.8]} 42... h4 {[%clk
0:01:43.2]} 43. Bd2 {[%clk 0:02:52.8]} 43... Rg3 {[%clk 0:01:42]} 44. Be3 {[%clk
0:02:50.9]} 44... Rxh3 {[%clk 0:01:40.6]} 45. Ng5+ {[%clk 0:02:50.2]} 1-0

[Event "Live Chess"]
[Site "Chess.com"]
[Date "2024.06.01"]
[Round "-"]
[White "bobby_jamesFischer86"]
[Black "degringolade64"]
[Result "0-1"]
[WhiteElo "1609"]
[BlackElo "2140"]
[TimeControl "300"]
[EndTime "13:41:28 PDT"]
[Termination "degringolade64 won by resignation"]

1. d4 {[%clk 0:04:57.2]} 1... Nf6 {[%clk 0:04:58]} 2. c4 {[%clk 0:04:55.8]} 2...
e6 {[%clk 0:04:57.6]} 3. Nc3 {[%clk 0:04:53.2]} 3... Bb4 {[%clk 0:04:57.2]} 4.
Bd2 {[%clk 0:04:51.7]} 4... O-O {[%clk 0:04:55.8]} 5. a3 {[%clk 0:04:50.5]} 5...
Bxc3 {[%clk 0:04:54.3]} 6. Bxc3 {[%clk 0:04:49.9]} 6... Ne4 {[%clk 0:04:54]} 7.
Qc2 {[%clk 0:04:48.7]} 7... d5 {[%clk 0:04:44.8]} 8. cxd5 {[%clk 0:04:40.9]}
8... exd5 {[%clk 0:04:44.7]} 9. Nf3 {[%clk 0:04:35.5]} 9... Re8 {[%clk
0:04:38.2]} 10. e3 {[%clk 0:04:34.2]} 10... Bf5 {[%clk 0:04:35.8]} 11. Bd3
{[%clk 0:04:33]} 11... g5 {[%clk 0:04:27.4]} 12. O-O {[%clk 0:04:29]} 12... g4
{[%clk 0:04:25]} 13. Nd2 {[%clk 0:04:20.6]} 13... Qg5 {[%clk 0:04:09.7]} 14.
Nxe4 {[%clk 0:04:16]} 14... Bxe4 {[%clk 0:04:07]} 15. Bxe4 {[%clk 0:04:13.8]}
15... Rxe4 {[%clk 0:04:05.9]} 16. Qb3 {[%clk 0:04:09.8]} 16... b6 {[%clk
0:03:56.6]} 17. Rac1 {[%clk 0:04:05.7]} 17... Nd7 {[%clk 0:03:48.6]} 18. Bd2
{[%clk 0:04:02.9]} 18... c5 {[%clk 0:03:41.6]} 19. f4 {[%clk 0:03:58.6]} 19...
gxf3 {[%clk 0:03:37.6]} 20. Rxf3 {[%clk 0:03:57.1]} 20... cxd4 {[%clk
0:03:32.9]} 21. Rg3 {[%clk 0:03:31.5]} 21... Rg4 {[%clk 0:03:26.1]} 22. exd4
{[%clk 0:03:17.2]} 22... Rxg3 {[%clk 0:03:12.4]} 23. hxg3 {[%clk 0:03:07.6]}
23... Qxd2 {[%clk 0:03:10.7]} 24. Rf1 {[%clk 0:02:51.5]} 24... Qxd4+ {[%clk
0:03:06.3]} 25. Kh1 {[%clk 0:02:49.6]} 25... Re8 {[%clk 0:02:36.3]} 26. Qf3
{[%clk 0:02:44.4]} 26... Ne5 {[%clk 0:02:20.2]} 27. Re1 {[%clk 0:02:35.3]} 27...
Nxf3 {[%clk 0:02:17.9]} 0-1

[Event "Live Chess"]
[Site "Chess.com"]
[Date "2024.06.01"]
[Round "-"]
[White "Bradfield133"]
[Black "ShanthamGrarks"]
[Result "0-1"]
[WhiteElo "1892"]
[BlackElo "1860"]
[TimeControl "300"]
[EndTime "13:41:37 PDT"]
[Termination "ShanthamGrarks won on time"]

1. c4 {[%clk 0:04:57]} 1... c6 {[%clk 0:04:56.6]} 2. Qa4 {[%clk 0:04:53.1]} 2...
Nf6 {[%clk 0:04:54.7]} 3. g3 {[%clk 0:04:52.2]} 3... g6 {[%clk 0:04:52.6]} 4.
Bg2 {[%clk 0:04:51.6]} 4... Bg7 {[%clk 0:04:51]} 5. Nf3 {[%clk 0:04:51.2]} 5...
O-O {[%clk 0:04:49.2]} 6. O-O {[%clk 0:04:49.8]} 6... d6 {[%clk 0:04:46.3]} 7.
d3 {[%clk 0:04:48.7]} 7... Nbd7 {[%clk 0:04:43.8]} 8. Nbd2 {[%clk 0:04:45.8]}
8... Nc5 {[%clk 0:04:42.7]} 9. Qc2 {[%clk 0:04:42.5]} 9... e5 {[%clk 0:04:41.6]}
10. Rb1 {[%clk 0:04:39.2]} 10... a5 {[%clk 0:04:39.2]} 11. b3 {[%clk 0:04:18.5]}
11... Na6 {[%clk 0:04:14.4]} 12. a3 {[%clk 0:04:16]} 12... Be6 {[%clk
0:04:06.8]} 13. b4 {[%clk 0:04:11.2]} 13... axb4 {[%clk 0:04:03.8]} 14. axb4
{[%clk 0:04:09.6]} 14... Nc7 {[%clk 0:04:03.3]} 15. e4 {[%clk 0:04:02]} 15... b5
{[%clk 0:03:56.8]} 16. cxb5 {[%clk 0:03:46.1]} 16... cxb5 {[%clk 0:03:54.5]} 17.
d4 {[%clk 0:03:36.4]} 17... exd4 {[%clk 0:03:49.7]} 18. Nxd4 {[%clk 0:03:34.5]}
18... Qd7 {[%clk 0:03:44.1]} 19. Nxe6 {[%clk 0:03:23.5]} 19... fxe6 {[%clk
0:03:16.3]} 20. e5 {[%clk 0:03:03.3]} 20... Nfd5 {[%clk 0:03:13.3]} 21. exd6
{[%clk 0:03:01.3]} 21... Qxd6 {[%clk 0:03:11.7]} 22. Ne4 {[%clk 0:03:00.3]}
22... Qe7 {[%clk 0:02:59.3]} 23. Bg5 {[%clk 0:02:52.5]} 23... Qd7 {[%clk
0:02:47.5]} 24. Rfd1 {[%clk 0:02:27.5]} 24... h6 {[%clk 0:02:25.4]} 25. Nc5
{[%clk 0:02:23.4]} 25... Qd6 {[%clk 0:02:18.4]} 26. Bd2 {[%clk 0:01:42.4]} 26...
Bd4 {[%clk 0:01:59.3]} 27. Be1 {[%clk 0:01:32.9]} 27... Bxc5 {[%clk 0:01:54.3]}
28. bxc5 {[%clk 0:01:25]} 28... Qc6 {[%clk 0:01:47.8]} 29. Rbc1 {[%clk 0:01:06]}
29... Kh7 {[%clk 0:01:39.8]} 30. Be4 {[%clk 0:01:00.5]} 30... Rg8 {[%clk
0:01:34.6]} 31. h4 {[%clk 0:00:55.6]} 31... h5 {[%clk 0:01:30.9]} 32. Qe2 {[%clk
0:00:50.4]} 32... Kg7 {[%clk 0:01:25.5]} 33. Bg2 {[%clk 0:00:39]} 33... Ra3
{[%clk 0:01:14.2]} 34. Qe5+ {[%clk 0:00:35.3]} 34... Kh7 {[%clk 0:01:10.1]} 35.
Qd6 {[%clk 0:00:31.3]} 35... Qe8 {[%clk 0:00:59.8]} 36. c6 {[%clk 0:00:14.8]}
36... Rg7 {[%clk 0:00:55.9]} 37. Rc2 {[%clk 0:00:06.7]} 37... b4 {[%clk
0:00:48.7]} 38. Re2 {[%clk 0:00:05.1]} 38... b3 {[%clk 0:00:45.6]} 39. Rxd5
{[%clk 0:00:03.3]} 39... Nxd5 {[%clk 0:00:43.4]} 40. Qxd5 {[%clk 0:00:02.2]}
40... exd5 {[%clk 0:00:42.2]} 41. Rxe8 {[%clk 0:00:00.2]} 41... Ra1 {[%clk
0:00:40.5]} 0-1

[Event "Live Chess"]
[Site "Chess.com"]
[Date "2024.06.01"]
[Round "-"]
[White "alicechristina"]
[Black "blunderabit"]
[Result "1-0"]
[WhiteElo "1985"]
[BlackElo "1778"]
[TimeControl "300"]
[EndTime "13:41:37 PDT"]
[Termination "alicechristina won on time"]

1. c4 {[%clk 0:04:57.2]} 1... Nf6 {[%clk 0:04:55.3]} 2. Nc3 {[%clk 0:04:55.7]}
2... e6 {[%clk 0:04:54]} 3. e4 {[%clk 0:04:53.8]} 3... c5 {[%clk 0:04:52.4]} 4.
e5 {[%clk 0:04:48.6]} 4... Ng8 {[%clk 0:04:50.7]} 5. Nf3 {[%clk 0:04:42.6]} 5...
Nc6 {[%clk 0:04:48.9]} 6. d4 {[%clk 0:04:40.9]} 6... cxd4 {[%clk 0:04:46.5]} 7.
Nxd4 {[%clk 0:04:40.1]} 7... Nxe5 {[%clk 0:04:44.5]} 8. Bf4 {[%clk 0:04:38.2]}
8... Ng6 {[%clk 0:04:33.9]} 9. Bg3 {[%clk 0:04:35.1]} 9... a6 {[%clk 0:04:22.7]}
10. Bd3 {[%clk 0:04:30]} 10... Nf6 {[%clk 0:04:18.4]} 11. h4 {[%clk 0:04:27.3]}
11... d6 {[%clk 0:04:12.6]} 12. h5 {[%clk 0:04:25.6]} 12... Ne5 {[%clk 0:04:10]}
13. Bc2 {[%clk 0:04:22]} 13... Bd7 {[%clk 0:04:02.1]} 14. b3 {[%clk 0:04:19.2]}
14... Qa5 {[%clk 0:03:57.2]} 15. Qd2 {[%clk 0:04:14]} 15... h6 {[%clk
0:03:54.8]} 16. O-O {[%clk 0:04:12]} 16... Nxh5 {[%clk 0:03:44.6]} 17. Bxe5
{[%clk 0:04:09.6]} 17... dxe5 {[%clk 0:03:42.5]} 18. Nf3 {[%clk 0:04:08.4]}
18... Bb4 {[%clk 0:03:25]} 19. Rad1 {[%clk 0:04:06.6]} 19... O-O-O {[%clk
0:03:21.7]} 20. a3 {[%clk 0:03:47.1]} 20... Bxc3 {[%clk 0:03:18.5]} 21. Qd6
{[%clk 0:03:45.7]} 21... Rhe8 {[%clk 0:02:35]} 22. b4 {[%clk 0:03:35.6]} 22...
Qc7 {[%clk 0:02:33.1]} 23. Qxc7+ {[%clk 0:03:32.8]} 23... Kxc7 {[%clk 0:02:31]}
24. Rd3 {[%clk 0:03:28.6]} 24... Bd4 {[%clk 0:02:26.1]} 25. Nxd4 {[%clk
0:03:27.7]} 25... exd4 {[%clk 0:02:23.7]} 26. Rxd4 {[%clk 0:03:27.2]} 26... Bc6
{[%clk 0:02:22.3]} 27. Rg4 {[%clk 0:03:24]} 27... g5 {[%clk 0:02:17.5]} 28. Rb1
{[%clk 0:03:11.5]} 28... f5 {[%clk 0:02:14.1]} 29. b5 {[%clk 0:02:53.5]} 29...
axb5 {[%clk 0:02:07.9]} 30. cxb5 {[%clk 0:02:49.4]} 30... Bd5 {[%clk 0:02:03.7]}
31. Ra4 {[%clk 0:02:44.9]} 31... Ra8 {[%clk 0:01:52.3]} 32. b6+ {[%clk
0:02:43.3]} 32... Kd7 {[%clk 0:01:45.2]} 33. Rab4 {[%clk 0:02:37.8]} 33... Rec8
{[%clk 0:01:35.2]} 34. Bd1 {[%clk 0:02:27.9]} 34... Nf4 {[%clk 0:01:31.9]} 35.
g3 {[%clk 0:02:23.4]} 35... Nd3 {[%clk 0:01:22.2]} 36. Rd4 {[%clk 0:02:22.3]}
36... Ne5 {[%clk 0:01:19.6]} 37. f4 {[%clk 0:02:15.8]} 37... gxf4 {[%clk
0:01:16.6]} 38. gxf4 {[%clk 0:02:15]} 38... Rg8+ {[%clk 0:01:14.3]} 39. Kf2
{[%clk 0:02:12.4]} 39... Ng4+ {[%clk 0:00:59.3]} 40. Ke1 {[%clk 0:02:04.4]}
40... Rxa3 {[%clk 0:00:55.7]} 41. Ba4+ {[%clk 0:01:53.6]} 41... Ke7 {[%clk
0:00:51.7]} 42. Rc1 {[%clk 0:01:51.2]} 42... Re3+ {[%clk 0:00:33.9]} 43. Kd2
{[%clk 0:01:48.5]} 43... Rb8 {[%clk 0:00:16.8]} 44. Bd1 {[%clk 0:01:46.2]} 44...
Re4 {[%clk 0:00:11.4]} 45. Rxe4 {[%clk 0:01:36.6]} 45... Bxe4 {[%clk 0:00:09.3]}
46. Rc7+ {[%clk 0:01:34.5]} 46... Kf6 {[%clk 0:00:07.2]} 47. Rh7 {[%clk
0:01:31.7]} 47... Rd8+ {[%clk 0:00:01.9]} 48. Ke2 {[%clk 0:01:27.6]} 48... Kg6
{[%clk 0:00:00.1]} 49. Rxh6+ {[%clk 0:01:25.5]} 1-0

[Event "Live Chess"]
[Site "Chess.com"]
[Date "2024.06.01"]
[Round "-"]
[White "Silverback7829"]
[Black "IanCalvert2"]
[Result "0-1"]
[WhiteElo "971"]
[BlackElo "1568"]
[TimeControl "300"]
[EndTime "13:41:40 PDT"]
[Termination "IanCalvert2 won by checkmate"]

1. d4 {[%clk 0:04:57.3]} 1... d5 {[%clk 0:04:59]} 2. Nf3 {[%clk 0:04:55]} 2...
Nf6 {[%clk 0:04:58]} 3. Nc3 {[%clk 0:04:52.7]} 3... c5 {[%clk 0:04:53.2]} 4. Be3
{[%clk 0:04:48.6]} 4... Nc6 {[%clk 0:04:38.7]} 5. dxc5 {[%clk 0:04:45.6]} 5...
e5 {[%clk 0:04:34.6]} 6. Qd2 {[%clk 0:04:33.9]} 6... d4 {[%clk 0:04:11.9]} 7.
Bg5 {[%clk 0:04:30.1]} 7... dxc3 {[%clk 0:04:09.4]} 8. bxc3 {[%clk 0:04:22.5]}
8... Qxd2+ {[%clk 0:04:05.6]} 9. Nxd2 {[%clk 0:04:19.9]} 9... Bf5 {[%clk
0:03:58]} 10. Rc1 {[%clk 0:04:10.7]} 10... Be7 {[%clk 0:03:44.6]} 11. Bxf6
{[%clk 0:04:03.5]} 11... Bxf6 {[%clk 0:03:40.6]} 12. g3 {[%clk 0:03:55.6]} 12...
O-O-O {[%clk 0:03:28.8]} 13. Nf3 {[%clk 0:03:50.4]} 13... e4 {[%clk 0:03:08.9]}
14. Nh4 {[%clk 0:03:47.1]} 14... Bxc3# {[%clk 0:02:51.4]} 0-1

[Event "Live Chess"]
[Site "Chess.com"]
[Date "2024.06.01"]
[Round "-"]
[White "Mangoalo"]
[Black "GwaryTek"]
[Result "0-1"]
[WhiteElo "1042"]
[BlackElo "1928"]
[TimeControl "300"]
[EndTime "13:42:02 PDT"]
[Termination "GwaryTek won by resignation"]

1. e4 {[%clk 0:04:58.6]} 1... Nf6 {[%clk 0:04:58.8]} 2. Nf3 {[%clk 0:04:58.5]}
2... Nxe4 {[%clk 0:04:57.1]} 3. Qe2 {[%clk 0:04:56.4]} 3... Nf6 {[%clk
0:04:56.8]} 4. Nc3 {[%clk 0:04:54.6]} 4... d5 {[%clk 0:04:55.4]} 5. d4 {[%clk
0:04:54.5]} 5... Bg4 {[%clk 0:04:53.2]} 6. Bg5 {[%clk 0:04:54.2]} 6... e6 {[%clk
0:04:50.5]} 7. h3 {[%clk 0:04:52]} 7... Bh5 {[%clk 0:04:48.1]} 8. O-O-O {[%clk
0:04:49.3]} 8... Be7 {[%clk 0:04:45.2]} 9. g4 {[%clk 0:04:44.4]} 9... Bg6 {[%clk
0:04:43.8]} 10. Bg2 {[%clk 0:04:44.3]} 10... Nc6 {[%clk 0:04:41.4]} 11. Ne5
{[%clk 0:04:38.3]} 11... Nxe5 {[%clk 0:04:16]} 12. dxe5 {[%clk 0:04:36.1]} 12...
Nd7 {[%clk 0:04:14.9]} 13. Bxe7 {[%clk 0:04:35.1]} 13... Qxe7 {[%clk 0:04:14.8]}
14. Bxd5 {[%clk 0:04:26.7]} 14... O-O-O {[%clk 0:03:02]} 15. Bxb7+ {[%clk
0:04:20.1]} 15... Kxb7 {[%clk 0:02:59.5]} 16. Qb5+ {[%clk 0:04:16.5]} 16... Nb6
{[%clk 0:02:57.7]} 17. Na4 {[%clk 0:04:13.2]} 17... Be4 {[%clk 0:02:41.6]} 18.
Nxb6 {[%clk 0:04:08.4]} 18... axb6 {[%clk 0:02:37.2]} 19. Rxd8 {[%clk 0:03:59]}
19... Rxd8 {[%clk 0:02:34.9]} 20. Rd1 {[%clk 0:03:58.6]} 20... Qg5+ {[%clk
0:02:30.8]} 0-1

[Event "Live Chess"]
[Site "Chess.com"]
[Date "2024.06.01"]
[Round "-"]
[White "Stanbad1"]
[Black "jimwad"]
[Result "1-0"]
[WhiteElo "2652"]
[BlackElo "1287"]
[TimeControl "300"]
[EndTime "13:42:04 PDT"]
[Termination "Stanbad1 won by checkmate"]

1. e4 {[%clk 0:04:58.6]} 1... e5 {[%clk 0:04:58.9]} 2. Nf3 {[%clk 0:04:58]} 2...
Nc6 {[%clk 0:04:56.6]} 3. Bc4 {[%clk 0:04:56.7]} 3... Bc5 {[%clk 0:04:55]} 4.
O-O {[%clk 0:04:54.9]} 4... Nf6 {[%clk 0:04:53.7]} 5. d3 {[%clk 0:04:54.4]} 5...
h6 {[%clk 0:04:52.4]} 6. Nc3 {[%clk 0:04:53.8]} 6... O-O {[%clk 0:04:49.7]} 7.
Be3 {[%clk 0:04:53.4]} 7... Bxe3 {[%clk 0:04:46.8]} 8. fxe3 {[%clk 0:04:53.3]}
8... d6 {[%clk 0:04:46.1]} 9. d4 {[%clk 0:04:48.6]} 9... exd4 {[%clk 0:04:42.4]}
10. exd4 {[%clk 0:04:48.5]} 10... Bg4 {[%clk 0:04:39.4]} 11. Be2 {[%clk
0:04:44.1]} 11... a5 {[%clk 0:04:25.8]} 12. d5 {[%clk 0:04:41.8]} 12... Ne5
{[%clk 0:04:24.1]} 13. Nxe5 {[%clk 0:04:40.4]} 13... Bxe2 {[%clk 0:04:22.1]} 14.
Nxf7 {[%clk 0:04:39.5]} 14... Rxf7 {[%clk 0:04:02.3]} 15. Qxe2 {[%clk
0:04:37.2]} 15... b6 {[%clk 0:03:52.6]} 16. e5 {[%clk 0:04:34.9]} 16... dxe5
{[%clk 0:03:51.1]} 17. Qxe5 {[%clk 0:04:32.6]} 17... Rd7 {[%clk 0:03:43.6]} 18.
Rad1 {[%clk 0:04:31]} 18... Re7 {[%clk 0:03:31.1]} 19. Qg3 {[%clk 0:04:27.4]}
19... Ne4 {[%clk 0:03:22.2]} 20. Nxe4 {[%clk 0:04:25.3]} 20... Rxe4 {[%clk
0:03:21.2]} 21. d6 {[%clk 0:04:24.8]} 21... cxd6 {[%clk 0:03:18.6]} 22. Rxd6
{[%clk 0:04:23.1]} 22... Qc7 {[%clk 0:03:15]} 23. Rfd1 {[%clk 0:04:21.5]} 23...
Qxc2 {[%clk 0:03:08.3]} 24. h3 {[%clk 0:04:17.6]} 24... Rae8 {[%clk 0:03:05.2]}
25. Kh2 {[%clk 0:04:15.3]} 25... Qxb2 {[%clk 0:03:01.2]} 26. Rxh6 {[%clk
0:04:10.7]} 26... Qe2 {[%clk 0:02:37.5]} 27. Rd7 {[%clk 0:04:02.3]} 27... R4e7
{[%clk 0:02:35]} 28. Rxe7 {[%clk 0:04:00.1]} 28... Rxe7 {[%clk 0:02:30]} 29.
Rxb6 {[%clk 0:03:59.7]} 29... Qxa2 {[%clk 0:02:19.5]} 30. Rb8+ {[%clk
0:03:55.8]} 30... Kf7 {[%clk 0:02:07.2]} 31. Qf3+ {[%clk 0:03:53.9]} 31... Kg6
{[%clk 0:02:02.5]} 32. Qg4+ {[%clk 0:03:52.2]} 32... Kf7 {[%clk 0:02:01]} 33.
Qf5# {[%clk 0:03:50.9]} 1-0